[Event "Early-Titled-Tuesday-Blitz-July-09-2024"]
[Site "Chess.com"]
[Date "2024.07.09"]
[Round "3"]
[White "Boundless_Strike"]
[Black "MusicCityMaster"]
[Result "1-0"]
[WhiteElo "2783"]
[BlackElo "2501"]
[TimeControl "180+1"]
[EndTime "8:30:52 PDT"]
[Termination "Boundless_Strike won by resignation"]

1. d4 {[%clk 0:03:00.9]} 1... Nf6 {[%clk 0:02:59.2]} 2. Nc3 {[%clk 0:03:00.8]}
2... d5 {[%clk 0:02:58.6]} 3. e4 {[%clk 0:03:00.6]} 3... e6 {[%clk 0:02:56.3]}
4. Be3 {[%clk 0:02:59.5]} 4... Bb4 {[%clk 0:02:54]} 5. f3 {[%clk 0:02:57.5]}
5... O-O {[%clk 0:02:49.1]} 6. a3 {[%clk 0:02:56]} 6... Bxc3+ {[%clk 0:02:48.6]}
7. bxc3 {[%clk 0:02:56.6]} 7... dxe4 {[%clk 0:02:49]} 8. fxe4 {[%clk 0:02:42.4]}
8... Nxe4 {[%clk 0:02:47.2]} 9. Bd3 {[%clk 0:02:41.5]} 9... f5 {[%clk
0:02:18.4]} 10. Ne2 {[%clk 0:02:18.2]} 10... b6 {[%clk 0:02:07.2]} 11. O-O
{[%clk 0:02:16]} 11... Bb7 {[%clk 0:02:07]} 12. Nf4 {[%clk 0:02:09.8]} 12... Qd6
{[%clk 0:02:00.7]} 13. Qe1 {[%clk 0:02:00.1]} 13... Nd7 {[%clk 0:01:53]} 14. a4
{[%clk 0:01:58.6]} 14... a5 {[%clk 0:01:51.4]} 15. c4 {[%clk 0:01:46.4]} 15...
Ndf6 {[%clk 0:01:41.5]} 16. h3 {[%clk 0:01:38.1]} 16... e5 {[%clk 0:01:21.1]}
17. c5 {[%clk 0:01:34.6]} 17... bxc5 {[%clk 0:01:18.6]} 18. Bc4+ {[%clk
0:01:34.9]} 18... Kh8 {[%clk 0:01:10.3]} 19. dxe5 {[%clk 0:01:26.7]} 19... Qxe5
{[%clk 0:01:01.8]} 20. Qh4 {[%clk 0:01:17.8]} 20... Qe8 {[%clk 0:00:46.1]} 21.
Ne6 {[%clk 0:00:47.1]} 21... Nd6 {[%clk 0:00:35.3]} 22. Bxc5 {[%clk 0:00:22.2]}
22... Nxc4 {[%clk 0:00:29.4]} 23. Nxf8 {[%clk 0:00:22.6]} 23... Qe2 {[%clk
0:00:28.4]} 24. Rf2 {[%clk 0:00:20.4]} 24... Qe4 {[%clk 0:00:25.1]} 25. Ng6+
{[%clk 0:00:13]} 25... Kg8 {[%clk 0:00:24.7]} 26. Ne7+ {[%clk 0:00:13.1]} 26...
Kf7 {[%clk 0:00:19.8]} 27. Nxf5 {[%clk 0:00:12.3]} 27... Qxh4 {[%clk 0:00:19.1]}
28. Nxh4 {[%clk 0:00:12.4]} 28... Re8 {[%clk 0:00:18.2]} 29. Nf3 {[%clk
0:00:09.7]} 29... h6 {[%clk 0:00:17.1]} 30. Bd4 {[%clk 0:00:09.9]} 30... Ne4
{[%clk 0:00:16.5]} 31. Ng5+ {[%clk 0:00:09.3]} 31... Kg6 {[%clk 0:00:16]} 32.
Nxe4 {[%clk 0:00:08.4]} 32... Rxe4 {[%clk 0:00:15.8]} 33. c3 {[%clk 0:00:08.9]}
33... Ne5 {[%clk 0:00:12.9]} 34. Raf1 {[%clk 0:00:07]} 34... Nd3 {[%clk
0:00:12.8]} 35. Rf7 {[%clk 0:00:07.1]} 35... Ne5 {[%clk 0:00:09.5]} 36. R7f4
{[%clk 0:00:04.8]} 36... Rxf4 {[%clk 0:00:09.1]} 37. Rxf4 {[%clk 0:00:05]} 37...
Nd3 {[%clk 0:00:09.3]} 38. Rf8 {[%clk 0:00:05.2]} 38... Bd5 {[%clk 0:00:08.7]}
39. Rc8 {[%clk 0:00:05]} 39... c6 {[%clk 0:00:09]} 40. Rc7 {[%clk 0:00:05]}
40... Nb2 {[%clk 0:00:09]} 41. Rxg7+ {[%clk 0:00:04.8]} 41... Kf5 {[%clk
0:00:08.7]} 42. Ra7 {[%clk 0:00:05.5]} 42... Nxa4 {[%clk 0:00:09]} 43. Rxa5
{[%clk 0:00:06.2]} 43... Nb2 {[%clk 0:00:09.9]} 44. Ra7 {[%clk 0:00:05.4]} 44...
Nc4 {[%clk 0:00:10.7]} 45. Rh7 {[%clk 0:00:05]} 45... Ke4 {[%clk 0:00:11.6]} 46.
Rxh6 {[%clk 0:00:05.1]} 46... Kd3 {[%clk 0:00:10.5]} 47. Rg6 {[%clk 0:00:05.4]}
47... Nd2 {[%clk 0:00:10.9]} 48. Rg3+ {[%clk 0:00:05.6]} 48... Kc2 {[%clk
0:00:09.7]} 49. h4 {[%clk 0:00:06]} 49... Ne4 {[%clk 0:00:10.3]} 50. Re3 {[%clk
0:00:06.1]} 50... c5 {[%clk 0:00:10.3]} 51. Be5 {[%clk 0:00:06]} 51... c4 {[%clk
0:00:10.1]} 52. h5 {[%clk 0:00:06.1]} 52... Kd2 {[%clk 0:00:10.5]} 53. Rh3
{[%clk 0:00:05.6]} 53... Nc5 {[%clk 0:00:10.8]} 54. Bd4 {[%clk 0:00:05.5]} 54...
Nb3 {[%clk 0:00:09.9]} 55. Bg7 {[%clk 0:00:05.1]} 55... Be4 {[%clk 0:00:10.2]}
56. h6 {[%clk 0:00:05.3]} 56... Bd3 {[%clk 0:00:09.5]} 57. h7 {[%clk 0:00:05.2]}
57... Bxh7 {[%clk 0:00:10.2]} 58. Rxh7 {[%clk 0:00:05.8]} 58... Nc5 {[%clk
0:00:10.5]} 59. Rh4 {[%clk 0:00:05.9]} 59... Nd3 {[%clk 0:00:10.8]} 60. Rxc4
{[%clk 0:00:05.9]} 60... Ne1 {[%clk 0:00:10.7]} 61. Rd4+ {[%clk 0:00:06.2]}
61... Ke3 {[%clk 0:00:10.9]} 62. Rd1 {[%clk 0:00:06.2]} 62... Nd3 {[%clk
0:00:10.9]} 63. Rxd3+ {[%clk 0:00:06.3]} 63... Kxd3 {[%clk 0:00:10.6]} 64. Kh2
{[%clk 0:00:07]} 64... Ke4 {[%clk 0:00:10.7]} 65. Bd4 {[%clk 0:00:07.9]} 65...
Kf4 {[%clk 0:00:11]} 66. Kg1 {[%clk 0:00:08.8]} 66... Ke4 {[%clk 0:00:10.7]} 67.
Kf2 {[%clk 0:00:09.7]} 67... Kf4 {[%clk 0:00:11.2]} 68. g3+ {[%clk 0:00:10.5]}
68... Kg4 {[%clk 0:00:11.6]} 69. Kg2 {[%clk 0:00:11.4]} 69... Kf5 {[%clk
0:00:12.5]} 70. Kf3 {[%clk 0:00:12]} 70... Kg5 {[%clk 0:00:13.3]} 71. g4 {[%clk
0:00:12.7]} 71... Kg6 {[%clk 0:00:13.2]} 72. Kg3 {[%clk 0:00:13.6]} 72... Kg5
{[%clk 0:00:13.7]} 73. c4 {[%clk 0:00:13.8]} 73... Kg6 {[%clk 0:00:13.9]} 74. c5
{[%clk 0:00:14.6]} 1-0

[Event "Early-Titled-Tuesday-Blitz-July-09-2024"]
[Site "Chess.com"]
[Date "2024.07.09"]
[Round "3"]
[White "Bykov_Egor"]
[Black "wild3000"]
[Result "1-0"]
[WhiteElo "2681"]
[BlackElo "2461"]
[TimeControl "180+1"]
[EndTime "8:30:56 PDT"]
[Termination "Bykov_Egor won on time"]

1. Nf3 {[%clk 0:03:00.9]} 1... d5 {[%clk 0:02:59.9]} 2. g3 {[%clk 0:03:01]} 2...
Nf6 {[%clk 0:02:59.8]} 3. Bg2 {[%clk 0:03:01.4]} 3... g6 {[%clk 0:02:59.7]} 4.
O-O {[%clk 0:03:01.2]} 4... Bg7 {[%clk 0:02:59.5]} 5. d4 {[%clk 0:03:01.8]} 5...
O-O {[%clk 0:02:59.5]} 6. c4 {[%clk 0:03:02.2]} 6... c6 {[%clk 0:02:59.3]} 7.
Qb3 {[%clk 0:03:02.2]} 7... Qb6 {[%clk 0:02:57.2]} 8. Nc3 {[%clk 0:03:02.2]}
8... Qxb3 {[%clk 0:02:57.1]} 9. axb3 {[%clk 0:03:02]} 9... Be6 {[%clk
0:02:53.4]} 10. Ng5 {[%clk 0:02:41.2]} 10... Nbd7 {[%clk 0:02:51.3]} 11. Nxe6
{[%clk 0:02:35.7]} 11... fxe6 {[%clk 0:02:52.2]} 12. Rd1 {[%clk 0:02:08.5]}
12... Ne8 {[%clk 0:02:45.7]} 13. Bh3 {[%clk 0:02:04.2]} 13... Kf7 {[%clk
0:02:43]} 14. cxd5 {[%clk 0:01:59.7]} 14... exd5 {[%clk 0:02:37.7]} 15. Bxd7
{[%clk 0:01:58.3]} 15... Nd6 {[%clk 0:02:37.4]} 16. Bh3 {[%clk 0:01:56.2]} 16...
e6 {[%clk 0:02:37.4]} 17. Bf4 {[%clk 0:01:55.4]} 17... Nf5 {[%clk 0:02:34.9]}
18. Bxf5 {[%clk 0:01:53]} 18... gxf5 {[%clk 0:02:35.8]} 19. Be5 {[%clk
0:01:52.8]} 19... Bxe5 {[%clk 0:02:30.8]} 20. dxe5 {[%clk 0:01:53.7]} 20... Ke7
{[%clk 0:02:30.1]} 21. b4 {[%clk 0:01:53.3]} 21... Kd7 {[%clk 0:02:30]} 22. Rd4
{[%clk 0:01:53.3]} 22... a6 {[%clk 0:02:30.1]} 23. Na4 {[%clk 0:01:52.6]} 23...
Kc7 {[%clk 0:02:26.5]} 24. Rh4 {[%clk 0:01:52]} 24... Rf7 {[%clk 0:02:26.1]} 25.
Rh6 {[%clk 0:01:52.2]} 25... Re8 {[%clk 0:02:20.8]} 26. Nc5 {[%clk 0:01:52.4]}
26... Rfe7 {[%clk 0:02:21.1]} 27. Rd1 {[%clk 0:01:51.7]} 27... Kb6 {[%clk
0:02:21.3]} 28. Rd4 {[%clk 0:01:50.2]} 28... Kb5 {[%clk 0:02:21.8]} 29. Rdh4
{[%clk 0:01:49.5]} 29... b6 {[%clk 0:02:21.7]} 30. Nb3 {[%clk 0:01:49.4]} 30...
c5 {[%clk 0:02:16.1]} 31. bxc5 {[%clk 0:01:46.7]} 31... bxc5 {[%clk 0:02:17]}
32. Rxh7 {[%clk 0:01:46.7]} 32... Rxh7 {[%clk 0:02:13.6]} 33. Rxh7 {[%clk
0:01:47.6]} 33... Kc4 {[%clk 0:02:10.6]} 34. Nd2+ {[%clk 0:01:44.7]} 34... Kd4
{[%clk 0:02:10.3]} 35. Nf3+ {[%clk 0:01:44.6]} 35... Kc4 {[%clk 0:02:08.6]} 36.
Rb7 {[%clk 0:01:44.3]} 36... a5 {[%clk 0:02:07.8]} 37. h4 {[%clk 0:01:41.3]}
37... a4 {[%clk 0:02:07.4]} 38. Kf1 {[%clk 0:01:36.4]} 38... d4 {[%clk
0:02:05.1]} 39. Nd2+ {[%clk 0:01:30.2]} 39... Kd5 {[%clk 0:02:04.9]} 40. Rd7+
{[%clk 0:01:30]} 40... Kxe5 {[%clk 0:02:02.9]} 41. Rd6 {[%clk 0:01:30.9]} 41...
Kxd6 {[%clk 0:01:59.2]} 42. e4 {[%clk 0:01:28.8]} 42... fxe4 {[%clk 0:01:33.4]}
43. Nxe4+ {[%clk 0:01:29.7]} 43... Kc6 {[%clk 0:01:30.8]} 44. h5 {[%clk
0:01:28.6]} 44... Rb8 {[%clk 0:01:26.7]} 45. h6 {[%clk 0:01:09.7]} 45... Rxb2
{[%clk 0:01:26.2]} 46. g4 {[%clk 0:01:03.7]} 46... a3 {[%clk 0:01:22.6]} 47. h7
{[%clk 0:01:03]} 47... Rb1+ {[%clk 0:01:21.3]} 48. Kg2 {[%clk 0:00:59.7]} 48...
Rb8 {[%clk 0:01:20.7]} 49. g5 {[%clk 0:00:47.8]} 49... a2 {[%clk 0:01:15.4]} 50.
g6 {[%clk 0:00:29.6]} 50... a1=Q {[%clk 0:01:15]} 51. g7 {[%clk 0:00:29.8]}
51... Qa8 {[%clk 0:00:52.2]} 52. Nf6 {[%clk 0:00:28.6]} 52... c4 {[%clk
0:00:43.4]} 53. g8=Q {[%clk 0:00:17.9]} 53... Rxg8+ {[%clk 0:00:30.8]} 54. Nxg8
{[%clk 0:00:18.8]} 54... c3 {[%clk 0:00:23]} 55. h8=Q {[%clk 0:00:19]} 55...
Kc5+ {[%clk 0:00:19.8]} 56. Kg3 {[%clk 0:00:17.9]} 56... Qe4 {[%clk 0:00:18.6]}
57. Ne7 {[%clk 0:00:16.9]} 57... c2 {[%clk 0:00:10.8]} 58. Qc8+ {[%clk 0:00:17]}
58... Kd6 {[%clk 0:00:11.2]} 59. Qd8+ {[%clk 0:00:13.2]} 59... Kc5 {[%clk
0:00:10.1]} 60. Qc7+ {[%clk 0:00:13.5]} 60... Kb4 {[%clk 0:00:08]} 61. Nc6+
{[%clk 0:00:13.3]} 61... Ka3 {[%clk 0:00:06.1]} 62. Qa5+ {[%clk 0:00:12.5]}
62... Kb2 {[%clk 0:00:05.8]} 63. Qb4+ {[%clk 0:00:12.4]} 63... Kc1 {[%clk
0:00:05.3]} 64. Nxd4 {[%clk 0:00:10.9]} 1-0

[Event "Early-Titled-Tuesday-Blitz-July-09-2024"]
[Site "Chess.com"]
[Date "2024.07.09"]
[Round "3"]
[White "Cxrjs"]
[Black "Nemegejas"]
[Result "0-1"]
[WhiteElo "2520"]
[BlackElo "2937"]
[TimeControl "180+1"]
[EndTime "8:31:00 PDT"]
[Termination "Nemegejas won by resignation"]

1. e4 {[%clk 0:03:00.9]} 1... c5 {[%clk 0:02:57.2]} 2. Nf3 {[%clk 0:03:01.1]}
2... e6 {[%clk 0:02:54.4]} 3. d4 {[%clk 0:03:01.2]} 3... cxd4 {[%clk 0:02:55.3]}
4. Nxd4 {[%clk 0:03:01.7]} 4... a6 {[%clk 0:02:55.7]} 5. Nc3 {[%clk 0:03:00.6]}
5... b5 {[%clk 0:02:53.8]} 6. a3 {[%clk 0:02:46.4]} 6... Bb7 {[%clk 0:02:51.4]}
7. Be2 {[%clk 0:02:33.6]} 7... Nf6 {[%clk 0:02:36.7]} 8. e5 {[%clk 0:02:30.2]}
8... Nd5 {[%clk 0:02:29.7]} 9. Nxd5 {[%clk 0:02:29.4]} 9... Bxd5 {[%clk
0:02:30.6]} 10. Bf3 {[%clk 0:02:29.1]} 10... Bxf3 {[%clk 0:02:27.1]} 11. Qxf3
{[%clk 0:02:27.8]} 11... Ra7 {[%clk 0:02:27.2]} 12. O-O {[%clk 0:02:22.8]} 12...
Bc5 {[%clk 0:02:14.8]} 13. Nb3 {[%clk 0:02:03.2]} 13... Rc7 {[%clk 0:01:56.5]}
14. Qg3 {[%clk 0:01:46.1]} 14... Bf8 {[%clk 0:01:47.2]} 15. c3 {[%clk
0:01:20.9]} 15... Nc6 {[%clk 0:01:46.3]} 16. a4 {[%clk 0:01:14.3]} 16... b4
{[%clk 0:01:39.2]} 17. Be3 {[%clk 0:01:10.2]} 17... Qb8 {[%clk 0:01:24.9]} 18.
Nd2 {[%clk 0:01:04]} 18... Ne7 {[%clk 0:01:21.3]} 19. cxb4 {[%clk 0:00:50]}
19... Nf5 {[%clk 0:01:20.1]} 20. Qf3 {[%clk 0:00:50.1]} 20... Bxb4 {[%clk
0:01:18.5]} 21. Ne4 {[%clk 0:00:37.8]} 21... O-O {[%clk 0:01:13.1]} 22. Bf4
{[%clk 0:00:20.7]} 22... Rc2 {[%clk 0:00:38.8]} 23. Qg4 {[%clk 0:00:18.3]} 23...
Qb7 {[%clk 0:00:22.4]} 24. Nf6+ {[%clk 0:00:14]} 24... Kh8 {[%clk 0:00:22.5]}
25. Bg5 {[%clk 0:00:13]} 25... h6 {[%clk 0:00:17.2]} 26. Qh5 {[%clk 0:00:09.2]}
26... Be7 {[%clk 0:00:15.8]} 27. g4 {[%clk 0:00:07.5]} 27... Qf3 {[%clk
0:00:05.5]} 28. gxf5 {[%clk 0:00:05.7]} 28... Qxh5 {[%clk 0:00:05.4]} 29. Nxh5
{[%clk 0:00:05.8]} 29... Bxg5 {[%clk 0:00:06.1]} 30. f6 {[%clk 0:00:03.5]} 30...
gxf6 {[%clk 0:00:05.5]} 31. exf6 {[%clk 0:00:03.1]} 31... Rg8 {[%clk 0:00:05.6]}
32. Kh1 {[%clk 0:00:03.6]} 32... Rxb2 {[%clk 0:00:04.9]} 33. f4 {[%clk
0:00:02.3]} 33... Bh4 {[%clk 0:00:05.3]} 34. Rg1 {[%clk 0:00:02.8]} 34... Rg6
{[%clk 0:00:03.8]} 35. Rac1 {[%clk 0:00:02]} 35... Rb8 {[%clk 0:00:03.5]} 36.
Rc7 {[%clk 0:00:02]} 36... Bf2 {[%clk 0:00:03.3]} 37. Rxg6 {[%clk 0:00:01.9]}
37... fxg6 {[%clk 0:00:04.2]} 38. Rxd7 {[%clk 0:00:02.6]} 38... gxh5 {[%clk
0:00:04]} 39. Re7 {[%clk 0:00:02.9]} 39... Rg8 {[%clk 0:00:03]} 40. h4 {[%clk
0:00:02.4]} 40... Bxh4 {[%clk 0:00:01.8]} 41. Rxe6 {[%clk 0:00:02.4]} 41... Rf8
{[%clk 0:00:02.5]} 42. f7 {[%clk 0:00:02.1]} 42... Kg7 {[%clk 0:00:03.4]} 43. f5
{[%clk 0:00:01.2]} 43... Rxf7 {[%clk 0:00:03.6]} 44. Rg6+ {[%clk 0:00:01.8]}
44... Kh7 {[%clk 0:00:04.1]} 45. Rxa6 {[%clk 0:00:02.4]} 45... Rxf5 {[%clk
0:00:04.4]} 46. Kg2 {[%clk 0:00:03.1]} 46... Bf6 {[%clk 0:00:04.3]} 47. Ra7+
{[%clk 0:00:03]} 47... Kg6 {[%clk 0:00:04.6]} 48. a5 {[%clk 0:00:03.8]} 48...
Rf4 {[%clk 0:00:04.5]} 49. Ra8 {[%clk 0:00:04.2]} 49... Ra4 {[%clk 0:00:04.7]}
50. a6 {[%clk 0:00:04.7]} 50... Bg7 {[%clk 0:00:05.1]} 51. a7 {[%clk 0:00:04.8]}
51... h4 {[%clk 0:00:05.6]} 52. Kh2 {[%clk 0:00:04.8]} 52... Ra3 {[%clk
0:00:04.8]} 53. Kg2 {[%clk 0:00:05]} 53... h5 {[%clk 0:00:04.9]} 54. Kf2 {[%clk
0:00:05.1]} 54... h3 {[%clk 0:00:05]} 55. Kg1 {[%clk 0:00:05.5]} 55... Ra2
{[%clk 0:00:05]} 56. Kh1 {[%clk 0:00:03.9]} 56... h2 {[%clk 0:00:03.4]} 57. Rb8
{[%clk 0:00:03]} 57... Ra1+ {[%clk 0:00:03.3]} 58. Kxh2 {[%clk 0:00:02.6]} 58...
Rxa7 {[%clk 0:00:03.8]} 59. Rb6+ {[%clk 0:00:02.9]} 59... Bf6 {[%clk 0:00:04]}
60. Kh3 {[%clk 0:00:03.8]} 60... Ra3+ {[%clk 0:00:04]} 61. Kg2 {[%clk
0:00:04.1]} 61... Kf5 {[%clk 0:00:03.9]} 62. Rb5+ {[%clk 0:00:04.1]} 62... Be5
{[%clk 0:00:04]} 63. Rb7 {[%clk 0:00:04.4]} 63... h4 {[%clk 0:00:04.1]} 64. Rh7
{[%clk 0:00:04.2]} 64... Kg4 {[%clk 0:00:03.5]} 65. Rh6 {[%clk 0:00:02.7]} 65...
h3+ {[%clk 0:00:03.8]} 66. Kf1 {[%clk 0:00:02.2]} 66... Ra1+ {[%clk 0:00:04.1]}
67. Kf2 {[%clk 0:00:02.5]} 67... h2 {[%clk 0:00:04]} 68. Kg2 {[%clk 0:00:03.2]}
68... Rg1+ {[%clk 0:00:04.2]} 69. Kf2 {[%clk 0:00:03.4]} 69... h1=Q {[%clk
0:00:05.1]} 0-1

[Event "Early-Titled-Tuesday-Blitz-July-09-2024"]
[Site "Chess.com"]
[Date "2024.07.09"]
[Round "3"]
[White "MetiForce"]
[Black "JoJoZP"]
[Result "1-0"]
[WhiteElo "2837"]
[BlackElo "2502"]
[TimeControl "180+1"]
[EndTime "8:31:01 PDT"]
[Termination "MetiForce won by resignation"]

1. e4 {[%clk 0:02:48.9]} 1... c5 {[%clk 0:02:59.6]} 2. Nf3 {[%clk 0:02:48.2]}
2... d6 {[%clk 0:02:59.3]} 3. d4 {[%clk 0:02:48]} 3... cxd4 {[%clk 0:03:00.2]}
4. Nxd4 {[%clk 0:02:48.6]} 4... Nf6 {[%clk 0:03:00.9]} 5. Nc3 {[%clk 0:02:49.1]}
5... a6 {[%clk 0:03:01.5]} 6. Bg5 {[%clk 0:02:49.2]} 6... Nbd7 {[%clk
0:03:01.2]} 7. Qe2 {[%clk 0:02:45.1]} 7... h6 {[%clk 0:03:00.4]} 8. Bh4 {[%clk
0:02:44.1]} 8... e6 {[%clk 0:02:54.5]} 9. O-O-O {[%clk 0:02:42.5]} 9... b5
{[%clk 0:02:51.4]} 10. f4 {[%clk 0:02:33.6]} 10... g5 {[%clk 0:02:46.5]} 11.
fxg5 {[%clk 0:02:31.1]} 11... hxg5 {[%clk 0:02:47.4]} 12. Bxg5 {[%clk
0:02:30.3]} 12... Bb7 {[%clk 0:02:47.2]} 13. a3 {[%clk 0:02:29.8]} 13... Be7
{[%clk 0:02:46.5]} 14. h4 {[%clk 0:02:16.6]} 14... Rc8 {[%clk 0:02:46.1]} 15.
Rh3 {[%clk 0:02:13.5]} 15... Rxc3 {[%clk 0:02:44.1]} 16. Rxc3 {[%clk 0:02:10.4]}
16... Nxe4 {[%clk 0:02:43.1]} 17. Rh3 {[%clk 0:01:46.6]} 17... Bxg5+ {[%clk
0:02:34.1]} 18. hxg5 {[%clk 0:01:46.1]} 18... Rxh3 {[%clk 0:02:32.3]} 19. gxh3
{[%clk 0:01:44.9]} 19... Qxg5+ {[%clk 0:02:32.9]} 20. Kb1 {[%clk 0:01:44.8]}
20... Ne5 {[%clk 0:02:23]} 21. Ka1 {[%clk 0:01:19]} 21... Nc4 {[%clk 0:01:59.9]}
22. Bg2 {[%clk 0:00:53.6]} 22... Ng3 {[%clk 0:01:32.7]} 23. Qf2 {[%clk
0:00:27.2]} 23... Ne3 {[%clk 0:01:27.6]} 24. Rg1 {[%clk 0:00:07.3]} 24... Nxg2
{[%clk 0:01:16.3]} 25. Rxg2 {[%clk 0:00:07.8]} 25... Bxg2 {[%clk 0:01:14.3]} 26.
Qxg2 {[%clk 0:00:08.7]} 26... Qf4 {[%clk 0:00:32.6]} 27. Qa8+ {[%clk 0:00:07.9]}
27... Ke7 {[%clk 0:00:31.2]} 28. Nc6+ {[%clk 0:00:08.6]} 28... Kf6 {[%clk
0:00:29.1]} 29. Qh8+ {[%clk 0:00:09.3]} 29... Kf5 {[%clk 0:00:26.2]} 30. Qh7+
{[%clk 0:00:09.9]} 30... Kf6 {[%clk 0:00:23.2]} 31. h4 {[%clk 0:00:09.7]} 31...
Qf1+ {[%clk 0:00:20]} 32. Ka2 {[%clk 0:00:09.8]} 32... Qc4+ {[%clk 0:00:20.6]}
33. Kb1 {[%clk 0:00:09.8]} 33... Qxc6 {[%clk 0:00:21.2]} 34. Qh6+ {[%clk
0:00:10.3]} 34... Ke5 {[%clk 0:00:19.1]} 35. Qg7+ {[%clk 0:00:08.2]} 35... Kf4
{[%clk 0:00:18.6]} 36. Qxf7+ {[%clk 0:00:08.5]} 36... Nf5 {[%clk 0:00:18.8]} 37.
Qxe6 {[%clk 0:00:08.1]} 37... Qh1+ {[%clk 0:00:17.3]} 38. Ka2 {[%clk 0:00:08.3]}
38... Qxh4 {[%clk 0:00:17.7]} 39. c4 {[%clk 0:00:06.4]} 39... Qh6 {[%clk
0:00:12.3]} 40. Qe2 {[%clk 0:00:05.9]} 40... bxc4 {[%clk 0:00:10.8]} 41. Qxc4+
{[%clk 0:00:04.6]} 41... Ke5 {[%clk 0:00:10.7]} 42. Qxa6 {[%clk 0:00:05.2]}
42... Qe6+ {[%clk 0:00:11.4]} 43. Kb1 {[%clk 0:00:05.5]} 43... Qd5 {[%clk
0:00:11.4]} 44. Qa7 {[%clk 0:00:03.7]} 44... Qd1+ {[%clk 0:00:11.1]} 45. Ka2
{[%clk 0:00:04.3]} 45... Qd5+ {[%clk 0:00:08.8]} 46. b3 {[%clk 0:00:04.8]} 46...
Nd4 {[%clk 0:00:07]} 47. Qg7+ {[%clk 0:00:05.4]} 47... Ke4 {[%clk 0:00:05.9]}
48. Qg2+ {[%clk 0:00:06]} 48... Ke5 {[%clk 0:00:05.9]} 49. Qg5+ {[%clk
0:00:05.2]} 49... Ke6 {[%clk 0:00:06]} 50. Qg8+ {[%clk 0:00:05.2]} 50... Ke5
{[%clk 0:00:06.1]} 51. Qg5+ {[%clk 0:00:05.9]} 51... Nf5 {[%clk 0:00:05.8]} 52.
a4 {[%clk 0:00:04.1]} 52... Qc5 {[%clk 0:00:03.7]} 53. Qg2 {[%clk 0:00:03.9]}
53... Qb4 {[%clk 0:00:03.1]} 54. Qh2+ {[%clk 0:00:04.4]} 54... Ke6 {[%clk
0:00:03.1]} 55. Qe2+ {[%clk 0:00:03.4]} 55... Kf6 {[%clk 0:00:03.8]} 56. Qh2
{[%clk 0:00:03.5]} 56... d5 {[%clk 0:00:04.1]} 57. Qh8+ {[%clk 0:00:03.7]} 57...
Ke6 {[%clk 0:00:04.2]} 58. Qg8+ {[%clk 0:00:03.9]} 58... Ke5 {[%clk 0:00:04.8]}
59. Qh8+ {[%clk 0:00:04.6]} 59... Ke4 {[%clk 0:00:05.1]} 60. Qh1+ {[%clk
0:00:05.3]} 60... Kd4 {[%clk 0:00:04.3]} 61. Qg1+ {[%clk 0:00:02.6]} 61... Kc3
{[%clk 0:00:03.4]} 62. Qe1+ {[%clk 0:00:02.6]} 62... Kc2 {[%clk 0:00:03.1]} 63.
Qxb4 {[%clk 0:00:03.5]} 1-0